Cogmind - Beta 9.4 @@@ ROGUE MODE // 2020.03.06 @ 21:35:39 Player: CouchSnake Result: Destroyed by G-34 Mercenary with Small Laser Performance ------------- Evolutions (1) 500 Regions Visited (2) 400 Robots Destroyed (17) 85 Value Destroyed (343) 343 Prototype IDs (1) 20 Alien Tech Used (0) 0 Bonus (0) 0 TOTAL SCORE: 1348 Bonus ------- None Cogmind --------- Core Integrity 0/400 Matter 300/300 Energy 91/100 System Corruption 0% Temperature Cool (14) Movement Walking (120) Location -9/Materials Parts ------- > --- POWER (2) -------- (None) > --- PROPULSION (2) --- Aluminum Leg Aluminum Leg > --- UTILITY (3) ------ Medium Storage Unit Medium Storage Unit > --- WEAPON (2) ------- (None) > --- INVENTORY (12) --- Improved Ion Engine Heat Sink Peak State ------------ > --- POWER ------------ Ion Engine Improved Ion Engine > --- PROPULSION ------- Aluminum Leg Aluminum Leg > --- UTILITY ---------- Medium Storage Unit Medium Storage Unit Visual Processing Unit > --- WEAPON ----------- Spread Laser Advanced Beam Cannon > --- INVENTORY -------- Improved Ion Engine Heat Sink Light Armor Plating EM Shotgun [Rating: 14] Favorites ----------- Power Ion Engine Engine Ion Engine Propulsion Light Treads Treads Light Treads Leg Aluminum Leg Utility Medium Storage Unit Storage Medium Storage Unit Processor Visual Processing Unit Protection Light Armor Plating Weapon EM Pulse Gun Energy Gun EM Pulse Gun Energy Cannon Advanced Beam Cannon Ballistic Gun Assault Rifle Build | -11 -10 -9 ------- Run | Scr Mat Mat Slots Evolved 2 | . . 2 Power 1 | . . 1 Propulsion . | . . . Utility 1 | . . 1 Weapon . | . . . Parts Attached 25 | 7 9 9 Power 4 | 1 2 1 Engine 4 | 1 2 1 Core . | . . . Reactor . | . . . Propulsion 6 | 2 2 2 Treads 2 | 2 . . Leg 4 | . 2 2 Wheel . | . . . Hover . | . . . Flight . | . . . Utility 6 | 2 2 2 Device . | . . . Storage 4 | 2 2 . Processor 1 | . . 1 Hackware . | . . . Protection 1 | . . 1 Artifact . | . . . Weapon 9 | 2 3 4 Energy Gun 6 | 1 2 3 Energy Cannon 1 | . . 1 Ballistic Gun 2 | 1 1 . Ballistic Cannon . | . . . Launcher . | . . . Special Weapon . | . . . Impact Weapon . | . . . Slashing Weapon . | . . . Piercing Weapon . | . . . Special Melee Weapon . | . . . Unidentified Prototypes 1 | . . 1 Parts Lost 11 | . 3 8 Power 3 | . 1 2 Propulsion 2 | . . 2 Utility 1 | . . 1 Weapon 5 | . 2 3 Highest Loss Streak 5 | . 2 5 Average Slot Usage (%) 94 | . 98 84 Engine 14 | . 13 14 Treads 17 | . 26 . Leg 7 | . 1 19 Storage 26 | . 28 22 Processor 2 | . . 9 Energy Gun 15 | . 18 8 Ballistic Gun 8 | . 8 8 Naked Turns . | . . . Heaviest Build 35 | 15 25 35 Greatest Support 40 | 40 40 20 Greatest Overweight (x) 10 | . 1 10 Average Overweight (x) . | . . 1 Largest Inventory Capacity 12 | 6 12 12 Average Capacity 10 | 5 11 12 Most Carried 8 | 6 8 5 Average Carried 4 | 4 5 2 Final Capacity 12 | 6 12 12 Final Carried 6 | 6 3 2 Class Distribution -------------------- 100% | Mutant Dominant Class ---------------- Mutant | -10/Materials Mutant | -9/Materials Resources | -11 -10 -9 ----------- Run | Scr Mat Mat Matter Collected 610 | 326 207 77 Remotely . | . . . Salvage Created 493 | 95 266 132 Parts 43 | 12 20 11 Haulers Intercepted . | . . . Recyclers Shooed . | . . . Parts Field Recycled . | . . . Retrieved Matter . | . . . Parts Self-Destructed . | . . . Prevented . | . . . Kills | -11 -10 -9 ------- Run | Scr Mat Mat Combat Hostiles Destroyed 10 | . 8 2 Guns 10 | . 8 2 Classes Destroyed 6 | 2 3 1 Worker 2 | 2 . . Tunneler 2 | 2 . . Watcher 3 | . 1 2 Swarmer 3 | . 3 . Grunt 6 | . 5 1 Sentry 1 | . . 1 Best Kill Streak 3 | 2 3 2 Combat Bots Only 3 | . 3 1 Max Kills in Single Turn 1 | 1 1 1 Gunslinging . | . . . Exploded . | . . . Melee . | . . . Uniques/NPCs Destroyed . | . . . Combat | -11 -10 -9 -------- Run | Scr Mat Mat Damage Taken 1640 | . 632 1008 Core 538 | . 135 403 Absorbed by Shields . | . . . Core Remaining (%) 73 | 100 46 . Volleys Fired 72 | 10 46 16 Largest 2 | 2 2 2 Hottest 80 | 60 80 65 Shots Fired 127 | 20 83 24 Gun 127 | 20 83 24 Cannon . | . . . Launcher . | . . . Special . | . . . Kinetic 45 | 10 26 9 Thermal 9 | . 6 3 Explosive . | . . . Electromagnetic 73 | 10 51 12 Robot Hit Streak 8 | 4 4 8 Robot Miss Streak 4 | 3 4 3 Penetration Max . | . . . Secondary Targets . | . . . Shots Hit Robots 67 | 11 39 17 Core Hits 31 | 5 14 12 Critical Hits 1 | . 1 . Critical Kills . | . . . Critical Parts Destroyed 1 | . 1 . Melee Attacks . | . . . Impact . | . . . Slashing . | . . . Piercing . | . . . Sneak Attacks . | . . . Combat Hostiles . | . . . Follow-up Attacks . | . . . Damage Inflicted 954 | 179 537 238 Guns 913 | 179 496 238 Cannons . | . . . Explosions 41 | . 41 . Melee . | . . . Ramming . | . . . Kinetic 351 | 98 195 58 Thermal 129 | . 86 43 Explosive . | . . . Electromagnetic 474 | 81 256 137 Impact . | . . . Slashing . | . . . Piercing . | . . . Highest Corruption . | . . . Average Corruption . | . . . Corruption Purged . | . . . Overload Shots . | . . . Overflow Damage 14 | . 14 . Projectiles . | . . . Explosions 14 | . 14 . Melee . | . . . Knockbacks . | . . . Impact . | . . . Kinetic . | . . . Secondary . | . . . Self-Inflicted Damage . | . . . Shots . | . . . Rammed . | . . . Targets Rammed . | . . . Kicked . | . . . Crushed . | . . . Highest Temperature 215 | . 198 215 Average Temperature 74 | . 74 73 Received Heat Transfer 783 | . 246 537 Siege Activations . | . . . Robots Corrupted . | . . . Combat Hostiles . | . . . Parts Fried 1 | . 1 . Impact Corruptions . | . . . Robots Melted . | . . . Combat Hostiles . | . . . Parts Melted . | . . . Heat Transferred 200 | . 150 50 Parts Sabotaged . | . . . Parts Stolen . | . . . Parts Stripped . | . . . Power Chain Reactions 1 | . 1 . Missiles Intercepted . | . . . Alert | -11 -10 -9 ------- Run | Scr Mat Mat Peak Influence 151 | 20 140 151 Average Influence 41 | 10 31 77 Maximum Alert Level . | . . . Low Security (%) 100 | 100 100 100 Level 1 . | . . . Level 2 . | . . . Level 3 . | . . . Level 4 . | . . . Level 5 . | . . . High Security . | . . . Max Security . | . . . Squads Dispatched 3 | . 2 1 Investigation 1 | . 1 . Extermination . | . . . Reinforcement 2 | . 1 1 Assault . | . . . Garrison . | . . . Intercept . | . . . Construction Impeded . | . . . Haulers Reinforced . | . . . Stealth | -11 -10 -9 --------- Run | Scr Mat Mat Distress Signals 4 | . 3 1 Communications Jammed . | . . . Distress Signals . | . . . Times Spotted 35 | . 19 16 Peak Tracking Total 5 | . 5 5 Tactical Retreats 3 | . 2 1 Traps | -11 -10 -9 ------- Run | Scr Mat Mat Traps Triggered 1 | . 1 . Indirectly . | . . . Trap Hack Attempts . | . . . Triggered . | . . . Disarmed . | . . . Reprogrammed . | . . . Reused . | . . . Traps Extracted . | . . . Installed . | . . . Triggered . | . . . Machines | -11 -10 -9 ---------- Run | Scr Mat Mat Machines Disabled . | . . . Max in Single Turn . | . . . Machines Sabotaged . | . . . Garrisons Compromised . | . . . Overloaded Fab Kills . | . . . Fab Network Shutdowns . | . . . Hacking | -11 -10 -9 --------- Run | Scr Mat Mat Machines Accessed 7 | . 4 3 Terminals 6 | . 4 2 Fabricators . | . . . Repair Stations . | . . . Recycling Units 1 | . . 1 Scanalyzers . | . . . Garrison Access . | . . . Total Hacks 22 | . 10 12 Successful 17 | . 9 8 Failed 5 | . 1 4 Catastrophic 1 | . 1 . Database Lockouts . | . . . Manual . | . . . Terminals 16 | . 10 6 Fabricators . | . . . Repair Stations . | . . . Recycling Units 6 | . . 6 Scanalyzers . | . . . Garrison Access . | . . . Terminal Hacks 12 | . 9 3 Record 7 | . 5 2 Robot Analysis 1 | . 1 . Alert Level 1 | . 1 . Locate Traps 1 | . . 1 Dispatch Records 1 | . 1 . Maintenance Status 1 | . 1 . Fabricator Hacks . | . . . Repair Station Hacks . | . . . Recycling Unit Hacks 5 | . . 5 Recycle Component 1 | . . 1 Process 2 | . . 2 Report Inventory 1 | . . 1 Retrieve Components 1 | . . 1 Scanalyzer . | . . . Garrison Access Hacks . | . . . Unauthorized Hacks . | . . . Terminals . | . . . Fabricators . | . . . Repair Stations . | . . . Recycling Units . | . . . Scanalyzers . | . . . Garrison Access . | . . . Data Cores Recovered . | . . . Used . | . . . Hacking Detections 3 | . 1 2 Full Trace Events 1 | . . 1 Feedback Events . | . . . Feedback Blocked . | . . . Robot Schematics Acquired . | . . . Robots Built . | . . . Matter . | . . . Time . | . . . Total Robot Build Rating . | . . . Part Schematics Acquired . | . . . Parts Built . | . . . Matter . | . . . Time . | . . . Total Part Build Rating . | . . . Parts Repaired . | . . . Time . | . . . Parts Recycled 1 | . . 1 Recycled Matter 7 | . . 7 Retrieved Matter . | . . . Retrieved Components . | . . . Parts Scanalyzed . | . . . Part Schematics Acquired . | . . . Parts Damaged . | . . . Bothacking | -11 -10 -9 ------------ Run | Scr Mat Mat Used RIF Installer . | . . . Robots Hacked . | . . . Non-combat . | . . . Combat . | . . . Robot Hacks Applied . | . . . Relay Couplers Released . | . . . Robots Rewired . | . . . Allies Hacked . | . . . Hacks Repelled . | . . . Allies | -11 -10 -9 -------- Run | Scr Mat Mat Total Allies . | . . . Largest Group . | . . . Highest-Rated Group . | . . . Highest-Rated Ally . | . . . Total Orders . | . . . Ally Attacks . | . . . Total Damage . | . . . Kills . | . . . Allies Corrupted . | . . . Allies Melted . | . . . Intel | -11 -10 -9 ------- Run | Scr Mat Mat Robot Analysis Total 1 | . 1 . Derelict Logs Recovered . | . . . Drone Launches . | . . . Drone Recoveries . | . . . Exploration | -11 -10 -9 ------------- Run | Scr Mat Mat Turns Passed 1827 | 242 1084 501 Spaces Moved 943 | 124 570 249 Core 15 | 2 . 13 Treads 665 | 122 543 . Legs 263 | . 27 236 Wheels . | . . . Hover . | . . . Flight . | . . . Fastest Speed 50 | 50 120 120 Average Speed 159 | 158 159 161 Slowest Speed 550 | 160 160 550 Overloaded Moves . | . . . Propulsion Burnouts . | . . . Robots Hopped . | . . . Cave-ins Triggered . | . . . Exploration Rate (%) 32 | 6 68 23 Regions Visited 2 Branch Regions . Pre-discovered Areas . | . . . Known Exits Taken . | . . . Unknown Exits Taken 2 | 1 1 . Scrap Searched . | . . . Spaces Dug . | . . . Terrain Destroyed 3 | . 3 . Melee . | . . . Projectile . | . . . AOE 3 | . 3 . Actions | -11 -10 -9 --------- Run | Scr Mat Mat Total 1133 | 146 664 323 Wait 70 | . 27 43 Move 941 | 123 569 249 Hop . | . . . Pick Up 15 | 6 5 4 Fast Attach 12 | 7 1 4 Attach 7 | . 3 4 Detach . | . . . Swap 6 | . 5 1 Drop 10 | . 8 2 Fire 72 | 10 46 16 Melee . | . . . Ram . | . . . Kick . | . . . Crush . | . . . Escape Stasis . | . . . Rewire . | . . . Trap . | . . . Miscellaneous . | . . . Route ------- -11/Scrapyard -10/Materials (discovered 3 exits: *Mat x2 / [*Min]) -9/Materials (discovered 2 exits: [*Mat] / [*Min]) History --------- Turn | Location | Event 24 | -11/Scrapyard | Discovered new exit (range 16) 243 | -11/Scrapyard | Entered Materials 300 | -10/Materials | Build established: Mutant 509 | -10/Materials | Discovered new exit (range 14) 608 | -10/Materials | Discovered new exit (range 16) 743 | -10/Materials | Discovered new exit (range 16) 1305 | -10/Materials | Core integrity fell below 50% 1327 | -10/Materials | Entered another Materials area 1327 | -9/Materials | Evolved 2 slots: Power x1, Utility x1 1590 | -9/Materials | Discovered new exit (range 5) 1754 | -9/Materials | Lost 3 parts (3w) 1773 | -9/Materials | Core integrity fell below 50% 1797 | -9/Materials | Core integrity fell below 20% 1809 | -9/Materials | Discovered new exit (range 16) 1819 | -9/Materials | Lost 5 parts (2p2n1u) 1828 | -9/Materials | Destroyed by G-34 Mercenary with Small Laser Last Messages --------------- Assault Rifle destroyed. K-01 Serf collects debris. Spread Laser destroyed. G-34 Mercenary destroyed. EM Shotgun destroyed. K-01 Serf collects debris. Discarded Visual Processing Unit. Dropped Faulty Adv. Beam Cannon. Aluminum Leg destroyed. U-05 Engineer builds a Door. Lgt. Armor Plating destroyed. U-05 Engineer lays Concrete. Ion Engine destroyed. Imp. Ion Engine destroyed. G-47 Trooper IFF system glitched. G-47 Trooper destroyed. EXIT=FOUND Acquired Aluminum Leg. Acquired 29 matter. [Achievement: First Step to Greatness] Map ----- +----------------------------------------------------+ | ?????????????????????????????????????????????????? | | ?????????????????????????????????????????????????? | | ?????????????????????????????????????????????????? | | ?????????????????????????????????????????????????? | | ?????????????????????????????????????????????????? | | ?????????????????????????????????????????????????? | | ?????????????????????????????????????????????????? | | ?????????????????????????????????????????????????? | | ?????????????????????????????????????????????????? | | ?????????????????????????????????????????????????? | | ???????????????????????? ??????????????????????? | | ???????????????????????? ??????????????????????? | | ???????????????????????? ??????????????????????? | | ???????????????????????# #?????????????????????? | | ?????????????????????### ##????????????????????? | | ????????????????????#" g #????????????????????? | | ?????????????????????"" gg #????????????????????? | | ?????????????????????!! #????????????????????? | | ??????????????????????" < #????????????????????? | | ??????????????????????! k #?????????????###+###? | | ??????????????????????? ??????????????# ## | | ??????????????????????? ??????????????# | | ???????????????????????# #??????????????# ^ | | ???????????????????????# #??????????????#^ | | ???????????????????????# u #??????????????# """ | | ???????????????????????# @ #??????????????# """ | | ????????????????######## #??????????????# ^""" | | ????????????????# #w #??????????????# | | ????????????????# # #??????????????# | | ????????????????# # #??????????????# ! | | ????????????????# # #????????#?????# %! | | ????????????????# # % #????? ??????# = | | ????????????????? # % #??" """???????# ## | | ??????????????????#+#+##gu # """???????# ##### | | ??????????????????# + """???????# #???? | | ???????????######## # #?????# #???? | | ???????????# = # =% #??????????????# #???? | | ???????????# = # #### #??????????????# #???? | | ???????????# # #??# #??????????????# #???? | | ???????????# + #??# #??????????????# #???? | | ???????????# # #??# #??????????????# #???? | | ???????????# # #??# #??????????????# #???? | | ?????############## #??# #??????????????# #???? | | ?????# ! """"" # #??# #??????????????# #???? | | ?????# """"" + #??# ##?????????????# #???? | | ?????# """"" # #?? ############## ##??? | | ?????# + #? #??? | | ?????# ## ##?? T #??? | | ?????############### #?? ^ "" #??? | | ???????????????????# #??? ## """ T" #??? | +----------------------------------------------------+ Best States ------------- Heat Dissipation 28 Energy Generation 17 Energy Capacity 415 Matter Stores 375 Matter Capacity 400 Sight Range 18 Terrain Scan Density 10 Armor Coverage 150 Evasion (%) 40 Recoil Reduction 2 Item Schematics ----------------- None Robot Schematics ------------------ None Fabricated ------------ Nothing Alien Tech Used ----------------- None Achievements -------------- First Step to Greatness Risk Taker Challenges ------------ None Game ------ Seed CannonGlidesysRigger Manual? 0 Play Time 00:27:33 Cumulative 7.4 hours Start 2020.03.06 @ 21:10:16 End 2020.03.06 @ 21:35:39 Sessions 1 Manual Loads 0 Difficulty Rogue Special Mode None Game No. 16 Rogue 16 Adventurer 0 Explorer 0 Win Type - Total 0 Types 0/0/0/0/0/0/0 Lore% 3 Gallery% 13 Achievement% 2 Wizard Run 0 Options --------- ASCII 0 Keyboard 0 Movement Mouse Keybinds 0 Fullscreen 1 Font 12/Terminus Map View 83x54 Tactical HUD 0 Map Filters NONE Filters NONE Steam 1 RUN: 2778e8f8-b7e3-4b25-a481-c32203ee2a1b